bitfinex/quotes_SOLUSD_20250722
["timestamp","ask_amount","ask_price","bid_price","bid_amount"]
[1753200099544,0.68,201.52,201.47,14.97233298]
[1753200099751,0.68,201.51,201.47,51.95233298]
[1753200099967,14.97233298,201.53,201.47,51.95233298]
[1753200100271,0.68,201.5,201.47,36.98]
[1753200100480,14.97233298,201.52,201.47,36.98]
[1753200100781,5.64273953,201.51,201.47,36.98]
[1753200101066,14.97233298,201.48,201.43,89.4]
[1753200101243,10.02133298,201.46,201.43,89.4]
[1753200101443,0.68,201.45,201.43,89.4]
[1753200101743,0.68,201.46,201.43,89.4]
[1753200101947,14.97233298,201.46,201.41,126.36]
[1753200102266,0.68,201.45,201.41,126.36]
[1753200102474,14.97233298,201.43,201.39,0.03]
[1753200102766,20.61677921,201.44,201.39,0.03]
[1753200103162,5.64444623,201.44,201.39,0.03]
[1753200103552,4.96444623,201.44,201.39,0.03]
[1753200103754,0.68,201.43,201.39,0.03]
[1753200103956,14.97233298,201.41,201.39,0.03]
[1753200104153,14.97233298,201.4,201.39,0.03]
[1753200104355,15.65233298,201.4,201.39,0.03]
[1753200104675,0.68,201.4,201.39,0.03]
[1753200104861,5.64524329,201.4,201.39,0.03]
[1753200105448,20.61757627,201.4,201.39,0.03]
[1753200108452,20.70838778,201.4,201.39,0.03]
[1753200109168,14.97233298,201.35,201.34,0.03]
[1753200109551,15.67233298,201.35,201.34,0.03]
[1753200110053,0.7,201.37,201.34,0.03]
[1753200110267,15.67233298,201.37,201.34,0.03]
[1753200110551,14.97233298,201.35,201.34,0.03]
[1753200110949,4.96647628,201.35,201.34,0.03]
[1753200111155,4.96626908,201.36,201.34,0.03]
[1753200111561,15.67233298,201.35,201.34,0.03]
[1753200112162,0.7,201.35,201.34,0.03]
[1753200113387,5.66647628,201.35,201.34,0.03]
[1753200113986,20.63880926,201.35,201.34,0.03]
[1753200114279,5.66647628,201.35,201.34,0.03]
[1753200114476,4.96647628,201.35,201.34,0.03]
[1753200114773,5.66647628,201.35,201.34,0.03]
[1753200116055,15.60959388,201.35,201.34,0.03]
[1753200116777,0.7,201.38,201.34,0.03]
[1753200117087,9.9431176,201.37,201.34,0.03]
[1753200117251,10.6431176,201.37,201.34,0.03]
[1753200117582,0.7,201.36,201.34,0.03]
[1753200118170,10.6431176,201.35,201.34,0.03]
[1753200120169,15.60959388,201.35,201.34,0.03]
[1753200120374,15.60959388,201.35,201.25,34.297308]
[1753200120375,85.05260554,201.35,201.25,34.297308]
[1753200120568,9.9431176,201.29,201.25,34.297308]
[1753200120883,0.7,201.28,201.25,34.297308]
[1753200121081,10.6431176,201.28,201.25,34.297308]
[1753200121285,9.9431176,201.3,201.25,34.297308]
[1753200121493,9.9431176,201.32,201.25,44.8504256]
[1753200121676,0.7,201.34,201.25,44.8504256]
[1753200121873,0.7,201.34,201.27,9.9431176]
[1753200122080,10.6431176,201.34,201.27,9.9431176]
[1753200122289,4.96696965,201.33,201.27,9.9431176]
[1753200122468,27.32751137,201.33,201.25,34.907308]
[1753200122671,9.9431176,201.26,201.25,34.297308]
[1753200122970,10.6431176,201.26,201.25,34.327308]
[1753200123190,10.6431176,201.26,201.25,7.56813065]
[1753200123494,81.2363176,201.26,201.25,1e-08]
[1753200123696,16.8682176,201.26,201.25,1e-08]
[1753200124107,16.8682176,201.26,201.19,0.22990179]
[1753200124108,43.59601917,201.26,201.13,0.69]
[1753200124286,4.97141436,201.15,201.1,0.69]
[1753200124602,4.97141436,201.15,201.07,10.6331176]
[1753200124781,14.91453196,201.15,201.09,0.69]
[1753200124978,9.9431176,201.13,201.07,9.9431176]
[1753200125181,5.58141436,201.15,201.03,30.97436613]
[1753200125182,9.9431176,201.12,201.04,1.5072]
[1753200125381,10.5531176,201.12,201.04,1.5072]
[1753200125587,10.5531176,201.12,201.0,0.69]
[1753200125783,0.61,201.12,201.0,0.69]
[1753200125988,27.33780157,201.12,201.11,1e-08]
[1753200126293,42.25307509,201.12,201.11,1e-08]
[1753200126677,16.78468397,201.11,200.9,10.0]
[1753200126866,9.9431176,201.05,200.99,9.9431176]
[1753200127072,9.9431176,201.05,200.97,0.69]
[1753200127268,15.05149073,201.04,200.98,15.05149073]
[1753200127476,15.05149073,201.02,200.93,0.69]
[1753200127680,15.66149073,201.03,200.96,15.05149073]
[1753200127885,15.05149073,200.99,200.92,15.05149073]
[1753200128077,0.61,201.03,200.94,15.05149073]
[1753200128294,20.0263676,201.01,200.93,0.69]
[1753200128574,20.0263676,201.01,200.85,0.69]
[1753200128575,15.05149073,200.94,200.85,0.69]
[1753200128786,15.05149073,200.92,200.85,15.74149073]
[1753200128970,15.05149073,200.9,200.82,0.69]
[1753200129170,0.61,200.91,200.84,15.05149073]
[1753200129371,15.05149073,200.89,200.82,0.69]
[1753200129572,2.53214873,200.91,200.83,15.05149073]
[1753200129771,0.61,200.91,200.8,0.69]
[1753200129990,1.96285669,200.92,200.89,15.05149073]
[1753200130193,1.96285669,200.92,200.91,15.05149073]
[1753200130376,1.96285669,200.92,200.88,0.69]
[1753200130574,21.99145581,200.92,200.86,15.05149073]
[1753200130818,0.61,200.92,200.81,0.69]
[1753200130973,1.96151737,200.96,200.81,0.69]
[1753200131179,1.96151737,200.96,200.82,26.0]
[1753200131384,15.05149073,200.93,200.86,15.05149073]
[1753200131589,15.05149073,200.92,200.83,0.69]
[1753200131794,0.61,200.97,200.9,15.05149073]
[1753200131979,0.61,200.97,200.83,0.69]
[1753200131980,1.90457507,200.97,200.88,0.69]
[1753200132188,15.05149073,201.0,200.93,15.05149073]
[1753200132379,20.02686263,200.99,200.92,15.05149073]
[1753200132576,20.02686263,200.99,200.93,15.05149073]
[1753200132577,15.05149073,200.99,200.93,15.05149073]
[1753200132803,15.05149073,201.0,200.93,15.05149073]
[1753200133015,1.0862,201.12,200.99,15.05149073]
[1753200133302,5.58240316,201.11,201.0,0.69]
[1753200133501,15.66149073,201.14,201.07,15.05149073]
[1753200133698,15.05149073,201.17,201.1,15.05149073]
[1753200133904,15.05149073,201.17,201.08,0.69]
[1753200134204,15.05149073,201.12,201.04,15.74149073]
[1753200134389,15.05149073,201.12,201.05,15.05149073]
[1753200134589,0.61,201.15,201.05,15.05149073]
[1753200134789,0.61,201.15,201.04,0.69]
[1753200134991,0.61,201.15,201.04,15.05149073]
[1753200134992,15.05149073,201.11,201.04,15.05149073]
[1753200135190,0.61,201.15,201.05,15.05149073]
[1753200135503,15.05149073,201.09,201.03,15.05149073]
[1753200135687,15.05149073,201.1,201.03,15.05149073]
[1753200135886,15.05149073,201.08,201.01,0.69]
[1753200136086,15.05149073,201.05,200.98,15.05149073]
[1753200136408,15.05149073,201.06,200.99,15.05149073]
[1753200136605,4.97388709,201.05,201.0,15.05149073]
[1753200136788,4.97388709,201.05,201.01,15.74149073]
[1753200137601,4.97388709,201.05,200.96,0.71]
[1753200137806,0.61,201.04,200.98,15.05149073]
[1753200138105,32.46009555,201.05,200.98,15.05149073]
[1753200138295,15.05149073,201.04,200.96,0.71]
[1753200138609,4.97586704,200.97,200.91,15.76149073]
[1753200138805,4.97586704,200.97,200.92,15.05149073]
[1753200138998,4.97487687,201.01,200.95,15.05149073]
[1753200139396,17.41206904,201.01,200.95,15.05149073]
[1753200139591,4.97459118,201.03,200.97,15.05149073]
[1753200139792,5.47414908,201.04,201.02,15.05149073]
[1753200140007,14.929459,201.07,201.03,15.76149073]
[1753200140185,19.9030733,201.07,201.04,0.71]
[1753200140386,32.33655417,201.07,201.0,0.71]
[1753200140587,15.05149073,201.06,200.97,0.71]
[1753200140815,15.05149073,201.04,200.98,15.05149073]
[1753200141113,15.05149073,201.05,200.98,15.05149073]
[1753200141294,15.05149073,201.04,200.97,15.05149073]
[1753200141499,15.05149073,201.03,200.96,15.05149073]
[1753200141813,15.05149073,201.05,200.98,15.05149073]
[1753200142031,19.9030733,201.07,201.04,15.05149073]
[1753200142188,4.9736143,201.07,201.02,15.05149073]
[1753200142525,4.97314501,201.08,201.03,15.05149073]
[1753200142690,15.05149073,201.07,200.99,0.71]
[1753200142997,15.05149073,201.07,200.96,0.71]
[1753200143199,15.05149073,201.02,200.92,0.71]
[1753200143398,15.05149073,201.02,200.95,15.05149073]
[1753200143602,15.05149073,201.0,200.92,0.71]
[1753200143914,15.05149073,200.99,200.92,0.71]
[1753200144115,0.61,201.02,200.93,15.05149073]
[1753200144316,15.05149073,201.0,200.93,15.05149073]
[1753200144816,4.97388709,201.05,200.99,15.05149073]
[1753200145004,4.97388709,201.05,201.0,15.05149073]
[1753200145813,4.9736397,201.06,200.98,0.71]
[1753200145995,15.05149073,201.05,200.98,15.76149073]
[1753200146192,15.05149073,201.04,200.98,15.05149073]
[1753200146396,15.05149073,201.01,200.95,15.05149073]
[1753200146818,15.05149073,201.01,200.95,14.05149073]
[1753200146995,15.05149073,200.97,200.9,89.81]
[1753200147198,15.05149073,200.97,200.91,15.05149073]
[1753200147415,15.05149073,201.0,200.93,15.05149073]
[1753200147717,4.97462939,201.02,200.96,15.05149073]
[1753200147899,15.05149073,201.01,200.95,15.05149073]
[1753200148211,15.05149073,201.01,200.92,0.71]
[1753200148212,15.05149073,200.99,200.92,15.76149073]
[1753200148507,15.05149073,201.0,200.93,15.05149073]
[1753200148817,15.05149073,201.01,200.95,15.05149073]
[1753200149016,32.46269359,201.02,200.95,15.05149073]
[1753200149218,32.46269359,201.02,200.94,15.76149073]
[1753200149219,15.05149073,201.01,200.94,15.76149073]
[1753200149916,12.43472997,201.05,200.99,15.05149073]
[1753200150216,4.97388709,201.05,200.99,15.05149073]
[1753200150713,17.40860482,201.05,200.98,15.05149073]
[1753200151020,17.40860482,201.05,200.92,37.16]
[1753200151021,15.05149073,200.99,200.92,0.71]
[1753200151235,15.05149073,200.98,200.91,15.05149073]
[1753200151441,63.18,201.02,200.9,15.05149073]
[1753200151731,15.05149073,200.98,200.91,15.05149073]
[1753200152097,4.97586704,200.97,200.91,15.05149073]
[1753200152293,4.97586704,200.97,200.89,0.74]
[1753200152502,15.05149073,200.95,200.89,0.03]
[1753200152803,15.05149073,200.92,200.89,0.03]
[1753200153302,0.61,200.94,200.89,0.03]
[1753200153519,15.05149073,200.93,200.89,0.03]
[1753200153722,32.46702538,200.97,200.91,15.05149073]
[1753200153923,15.05149073,200.96,200.9,0.71]
[1753200154210,17.41900164,200.93,200.89,0.03]
[1753200154517,52.23149073,200.99,200.92,15.05149073]
[1753200154835,32.4654342,200.99,200.93,15.05149073]
[1753200155142,4.9753719,200.99,200.95,15.05149073]
[1753200155298,4.9753719,200.99,200.96,15.76149073]
[1753200155496,4.97487687,201.01,200.98,15.05149073]
[1753200155695,4.97388709,201.05,200.99,15.76149073]
[1753200155924,4.97388709,201.05,201.0,15.05149073]
[1753200156136,44.03036386,201.06,201.01,15.05149073]
[1753200156137,16.54465083,201.06,201.01,15.05149073]
[1753200156321,16.54465083,201.06,201.02,15.05149073]
[1753200156526,16.54465083,201.06,201.01,0.71]
[1753200156732,31.59614156,201.06,201.01,0.71]
[1753200157061,15.05149073,201.03,200.96,15.05149073]
[1753200157740,37.18,201.02,200.92,0.71]
[1753200157947,15.05149073,200.97,200.92,0.71]
[1753200158122,15.05149073,200.97,200.91,0.03]
[1753200158330,15.05149073,200.92,200.91,0.03]
[1753200160227,15.66149073,200.92,200.91,0.03]
[1753200160427,15.05149073,200.92,200.91,0.03]
[1753200161230,26.61,200.92,200.91,0.03]
[1753200161452,15.05149073,200.92,200.91,0.03]
[1753200161634,41.05149073,200.92,200.91,0.03]
[1753200161838,26.0,200.92,200.91,0.03]
[1753200162035,78.23149073,200.92,200.91,0.03]
[1753200162232,78.84149073,200.92,200.91,0.03]
[1753200163255,81.28350635,200.92,200.91,0.03]
[1753200164155,41.66149073,200.92,200.91,0.03]
[1753200164364,52.23149073,200.92,200.91,0.03]
[1753200164532,52.19149073,200.92,200.91,0.03]
[1753200165656,52.80149073,200.92,200.91,0.03]
[1753200166236,52.19149073,200.92,200.91,0.03]
[1753200166554,15.05149073,200.92,200.91,0.03]
[1753200166744,2.2286,201.0,200.91,0.03]
[1753200166941,15.05149073,200.94,200.91,0.03]
[1753200167288,37.1,200.94,200.91,0.03]
[1753200167644,15.05149073,200.92,200.91,0.03]
[1753200168045,15.05149073,200.93,200.91,0.03]
[1753200168463,37.1,200.94,200.91,0.03]
[1753200168636,15.05149073,200.92,200.91,0.03]
[1753200168957,15.05149073,200.93,200.91,0.03]
[1753200169342,0.61,200.96,200.91,0.03]
[1753200169653,15.05149073,200.94,200.91,0.03]
[1753200169851,37.08,200.93,200.91,0.03]
[1753200170251,52.13149073,200.93,200.91,0.03]
[1753200170656,37.08,200.93,200.91,0.03]
[1753200170853,0.61,200.92,200.91,0.03]
[1753200171159,15.05149073,200.92,200.91,0.03]
[1753200171654,37.08,200.93,200.91,0.03]
[1753200172161,37.02,200.92,200.91,0.03]
[1753200173442,52.07149073,200.92,200.91,0.03]
[1753200174042,37.02,200.92,200.91,0.03]
[1753200174254,52.07149073,200.92,200.91,0.03]
[1753200174962,15.05149073,200.92,200.91,0.03]
[1753200175164,52.07149073,200.92,200.91,0.03]
[1753200176659,52.68149073,200.92,200.91,0.03]
[1753200177259,55.01943986,200.92,200.91,0.03]
[1753200177454,39.96794913,200.92,200.91,0.03]
[1753200177757,54.95943986,200.92,200.91,0.03]
[1753200177937,26.0,200.93,200.91,0.03]
[1753200178138,36.96,200.92,200.91,0.03]
[1753200178952,15.05149073,200.96,200.91,0.75]
[1753200179261,36.96,200.95,200.92,0.72]
[1753200179456,36.96,200.94,200.91,0.03]
[1753200179770,36.96,200.94,200.91,0.75]
[1753200180161,52.01149073,200.94,200.91,0.03]
[1753200180962,15.05149073,200.92,200.91,0.03]
[1753200181137,9.98471327,200.95,200.91,0.75]
[1753200181337,36.94,200.94,200.89,9.73471327]
[1753200181559,9.98471327,200.92,200.86,9.98471327]
[1753200181757,9.98471327,200.9,200.84,9.98471327]
[1753200181946,0.67,200.93,200.82,10.01471327]
[1753200181947,46.94471327,200.89,200.82,10.01471327]
[1753200182290,9.98471327,200.88,200.82,0.03]
[1753200183151,9.98471327,200.87,200.82,0.03]
[1753200183352,0.67,200.87,200.82,0.03]
[1753200183543,37.63,200.86,200.82,0.03]
[1753200183744,9.98471327,200.85,200.82,0.03]
[1753200183954,36.98,200.86,200.82,0.75]
[1753200184155,36.98,200.89,200.84,9.98471327]
[1753200184355,46.96471327,200.89,200.83,9.98471327]
[1753200184554,26.0,200.93,200.82,0.75]
[1753200184555,37.0,200.92,200.84,7.3632]
[1753200184759,37.0,200.92,200.85,0.72]
[1753200185067,9.98471327,200.9,200.84,6.6432]
[1753200185363,9.98471327,200.88,200.82,0.75]
[1753200185567,46.98471327,200.89,200.82,10.73471327]
[1753200185952,37.0,200.89,200.83,9.98471327]
[1753200186164,37.0,200.89,200.84,0.72]
[1753200186468,0.67,200.94,200.86,9.98471327]
[1753200186671,0.67,200.94,200.89,9.98471327]
[1753200186672,37.0,200.94,200.89,9.98471327]
[1753200186845,37.0,200.94,200.9,0.72]
[1753200187367,47.65471327,200.94,200.87,9.98471327]
[1753200187675,0.06,201.0,200.93,9.98471327]
[1753200187849,0.06,201.0,200.97,9.98471327]
[1753200188357,0.06,201.0,200.95,0.72]
[1753200188552,0.06,201.0,200.96,0.72]
[1753200188752,0.06,201.0,200.92,0.72]
[1753200188971,9.98471327,200.99,200.92,0.72]
[1753200189284,15.06042657,200.98,200.92,0.72]
[1753200189481,15.06042657,200.99,200.92,15.78042657]
[1753200189965,37.75,201.0,200.88,15.78042657]
[1753200189966,15.06042657,200.94,200.88,15.78042657]
[1753200190163,15.06042657,200.94,200.86,1.593]
[1753200190164,15.06042657,200.94,200.89,0.72]
[1753200190369,15.06042657,200.94,200.86,2.313]
[1753200190569,15.06042657,200.94,200.88,15.06042657]
[1753200191169,15.06042657,200.94,200.86,2.313]
[1753200191170,15.06042657,200.96,200.9,15.06042657]
[1753200191346,15.06042657,200.96,200.89,0.72]
[1753200191546,15.06042657,200.95,200.89,15.78042657]
[1753200191743,15.06042657,200.97,200.9,15.78042657]
[1753200192776,0.06,200.98,200.92,15.06042657]
[1753200192976,0.06,200.98,200.95,15.06042657]
[1753200193348,0.06,200.98,200.94,15.06042657]
[1753200193567,0.06,200.98,200.86,118.753]
[1753200193568,0.06,200.98,200.97,15.06042657]
[1753200194068,0.06,201.0,200.98,1.6353]
[1753200194246,0.06,201.0,200.98,0.72]
[1753200194650,0.06,201.0,200.98,15.78042657]
[1753200194851,0.06,201.0,200.95,15.06042657]
[1753200195360,0.73,201.0,200.92,0.72]
[1753200195672,15.79042657,201.0,200.93,15.06042657]
[1753200195868,15.06042657,200.99,200.92,0.72]
[1753200196170,0.67,200.99,200.93,15.06042657]
[1753200196471,0.67,200.99,200.91,1.6353]
[1753200196472,0.06,201.0,200.96,15.06042657]
[1753200196671,0.06,201.0,200.96,0.72]
[1753200196888,0.06,201.0,200.97,15.78042657]
[1753200197169,0.06,201.0,200.95,15.78042657]
[1753200197669,0.06,201.0,200.96,15.76042657]
[1753200197846,0.06,201.0,200.94,15.06042657]
[1753200198047,0.06,201.0,200.97,15.06042657]
[1753200198269,0.06,201.0,200.98,0.7]
[1753200198472,0.06,201.0,200.98,15.76042657]
[1753200198668,0.06,201.0,200.99,15.76042657]
[1753200198971,0.06,201.0,200.99,0.7]
[1753200199275,0.06,201.0,200.99,15.76042657]
[1753200199456,0.06,201.0,200.99,0.7]
[1753200199781,0.06,201.0,200.96,15.76042657]
[1753200200149,0.06,201.0,200.96,0.7]
[1753200200374,0.06,201.0,200.96,15.76042657]
[1753200200551,0.06,201.0,200.97,15.76042657]
[1753200201053,0.06,201.0,200.94,0.7]
[1753200201054,15.12042657,201.0,200.94,0.7]
[1753200201259,0.06,201.0,200.95,15.06042657]
[1753200201464,0.06,201.0,200.96,0.7]
[1753200201660,0.06,201.0,200.93,93.5831]
[1753200201867,0.06,201.0,200.94,15.06042657]
[1753200202145,0.06,201.0,200.95,15.06042657]
[1753200202375,0.06,201.0,200.96,15.06042657]
[1753200202558,0.06,201.0,200.97,15.06042657]
[1753200202762,0.06,201.0,200.96,15.76042657]
[1753200203354,0.06,201.0,200.98,15.06042657]
[1753200203866,0.06,201.0,200.99,0.7]
[1753200205172,0.06,201.0,200.95,0.7]
[1753200205477,0.06,201.0,200.99,15.06042657]
[1753200205771,0.06,201.0,200.99,103.16042657]
[1753200205974,0.06,201.06,200.99,103.16042657]
[1753200206165,0.06,201.06,201.05,15.06042657]
[1753200206564,0.06,201.06,201.05,15.76042657]
[1753200206967,0.06,201.06,201.02,0.7]
[1753200207167,0.06,201.06,201.03,0.7]
[1753200207367,0.06,201.06,201.04,15.76042657]
[1753200207675,0.06,201.06,201.05,15.06042657]
[1753200207877,0.06,201.06,201.05,15.76042657]
[1753200208079,0.06,201.11,201.05,103.16042657]
[1753200208282,0.06,201.11,201.06,47.24468397]
[1753200208573,0.06,201.11,201.1,15.06042657]
[1753200208773,0.06,201.11,201.1,139.40042657]
[1753200208973,0.06,201.11,201.1,103.16042657]
[1753200209161,0.06,201.11,201.1,125.04]
[1753200209368,0.06,201.11,201.1,135.00290092]
[1753200210369,0.06,201.11,201.1,47.60290092]
[1753200210762,0.06,201.2,201.15,9.96290092]
[1753200210962,0.06,201.2,201.15,134.22290092]
[1753200211166,0.06,201.2,201.15,47.58290092]
[1753200211355,0.06,201.2,201.15,53.61060092]
[1753200214475,0.06,201.2,201.15,77.14638981]
[1753200214677,0.06,201.2,201.19,9.96290092]
[1753200214982,0.06,201.2,201.19,46.88290092]
[1753200215175,0.06,201.2,201.19,47.58290092]
[1753200215776,0.06,201.2,201.19,37.62]
[1753200215971,0.06,201.2,201.19,47.58290092]
[1753200216272,0.06,201.2,201.19,134.92290092]
[1753200216777,0.06,201.2,201.19,36.9]
[1753200216976,0.06,201.2,201.16,36.9]
[1753200216977,10.02290092,201.2,201.16,36.9]
[1753200217175,10.68290092,201.19,201.16,36.9]
[1753200217682,0.06,201.2,201.16,46.86290092]
[1753200217873,0.06,201.2,201.17,9.96290092]
[1753200218074,0.06,201.2,201.19,9.96290092]
[1753200218278,0.06,201.2,201.19,134.20290092]
[1753200218476,0.06,201.2,201.19,47.56290092]
[1753200219479,0.06,201.2,201.19,49.21140092]
[1753200219871,0.06,201.2,201.19,79.42451204]
[1753200220262,0.06,201.33,201.2,16.78468397]
[1753200220457,0.06,201.33,201.32,9.96290092]
[1753200220676,0.06,201.33,201.32,46.86290092]
[1753200220885,0.06,201.33,201.32,47.56290092]
[1753200221379,0.06,201.33,201.32,51.89648275]
[1753200221775,0.06,201.33,201.32,52.59648275]
[1753200222586,0.06,201.33,201.32,69.38116672]
[1753200222791,0.06,201.38,201.35,16.78468397]
[1753200222992,0.06,201.44,201.37,61.54116672]
[1753200223198,0.06,201.44,201.43,14.99648275]
[1753200223491,0.06,201.44,201.43,51.89648275]
[1753200223670,0.06,201.44,201.43,52.59648275]
[1753200224174,15.58797381,201.53,201.46,14.99648275]
[1753200224370,0.59149106,201.53,201.49,14.99648275]
[1753200224592,0.1,201.54,201.49,14.99648275]
[1753200224786,0.1,201.54,201.5,14.99648275]
[1753200224974,0.1,201.54,201.51,36.88]
[1753200225291,14.99648275,201.53,201.48,36.88]
[1753200225501,0.1,201.54,201.47,36.88]
[1753200225666,15.09648275,201.54,201.48,14.99648275]
[1753200225988,0.1,201.54,201.5,14.99648275]
[1753200226292,0.1,201.54,201.5,51.87648275]
[1753200226871,0.1,201.54,201.51,14.99648275]
[1753200227069,0.1,201.54,201.52,14.99648275]
[1753200227330,0.1,201.54,201.53,51.87648275]
[1753200227597,0.1,201.54,201.53,37.11689374]
[1753200227793,0.1,201.54,201.53,37.81689374]
[1753200228174,0.1,201.54,201.53,52.81337649]
[1753200228369,0.1,201.54,201.53,0.93689374]
[1753200228576,0.1,201.54,201.53,52.09337649]
[1753200228775,0.1,201.54,201.53,0.23689374]
[1753200229273,15.80648275,201.54,201.53,0.23689374]
[1753200229694,15.80648275,201.54,201.42,14.99648275]
[1753200229999,14.99648275,201.52,201.43,37.56]
[1753200230175,0.71,201.53,201.48,14.99648275]
[1753200230371,14.99648275,201.52,201.47,36.86]
[1753200230571,14.99648275,201.53,201.47,51.85648275]
[1753200230790,14.99648275,201.53,201.47,36.86]
[1753200230986,14.99648275,201.52,201.47,36.86]
[1753200231207,15.70648275,201.51,201.47,36.86]
[1753200231404,0.71,201.51,201.47,36.86]
[1753200231607,0.71,201.51,201.46,14.99648275]
[1753200231799,0.71,201.51,201.46,51.85648275]
[1753200232000,14.99648275,201.47,201.4,14.99648275]
[1753200232206,0.71,201.47,201.41,14.99648275]
[1753200232389,14.99648275,201.46,201.4,36.86]
[1753200232589,14.99648275,201.45,201.4,36.84]
[1753200232807,0.71,201.44,201.4,36.84]
[1753200233287,14.99648275,201.41,201.34,14.99648275]
[1753200233488,14.99648275,201.4,201.33,0.7]
[1753200233683,14.99648275,201.38,201.31,14.99648275]
[1753200233920,14.99648275,201.39,201.32,51.83648275]
[1753200234101,14.99648275,201.42,201.35,14.99648275]
[1753200234297,26.0,201.45,201.33,14.99648275]
[1753200234619,14.99648275,201.45,201.38,14.99648275]
[1753200234796,14.99648275,201.48,201.41,14.99648275]
[1753200235112,0.71,201.49,201.43,14.99648275]
[1753200235283,1.6294,201.54,201.44,0.7]
[1753200235284,0.1,201.54,201.44,0.7]
[1753200235482,0.1,201.54,201.5,14.99648275]
[1753200235806,0.1,201.54,201.48,36.88]
[1753200235982,0.1,201.54,201.48,51.87648275]
[1753200236188,15.09648275,201.54,201.48,36.88]
[1753200236504,0.1,201.54,201.47,36.88]
[1753200236689,0.1,201.54,201.45,0.15719819]
[1753200236690,0.1,201.54,201.49,14.99648275]
[1753200237008,0.1,201.54,201.48,36.88]
[1753200237317,26.1,201.54,201.5,14.99648275]
[1753200237514,26.1,201.54,201.49,14.99648275]
[1753200238307,0.1,201.54,201.49,15.69648275]
[1753200238514,0.1,201.54,201.5,14.99648275]
[1753200239002,0.1,201.54,201.53,14.99648275]
[1753200239486,0.1,201.54,201.52,36.84]
[1753200239687,0.1,201.54,201.53,14.99648275]
[1753200240210,15.80648275,201.54,201.45,0.7]
[1753200240384,14.99648275,201.52,201.45,52.53648275]
[1753200240696,14.99648275,201.46,201.38,36.84]
[1753200240892,41.70648275,201.48,201.38,37.54]
[1753200241110,0.71,201.51,201.46,14.99648275]
[1753200241313,14.99648275,201.52,201.45,14.99648275]
[1753200241489,14.99648275,201.49,201.44,36.84]
[1753200241694,0.71,201.49,201.43,14.99648275]
[1753200241890,26.0,201.51,201.45,14.99648275]
[1753200242207,26.0,201.49,201.46,14.99648275]
[1753200242511,26.0,201.49,201.45,14.99648275]
[1753200242708,0.71,201.52,201.46,14.99648275]
[1753200242905,15.09648275,201.54,201.47,14.99648275]
[1753200243209,0.1,201.54,201.47,0.7]
[1753200243424,14.99648275,201.53,201.46,14.99648275]
[1753200243828,14.99648275,201.51,201.45,36.84]
[1753200244233,0.1,201.54,201.45,36.84]
[1753200244234,0.1,201.54,201.48,14.99648275]
[1753200244527,0.1,201.54,201.46,0.7]
[1753200244835,0.1,201.54,201.52,14.99648275]
[1753200245610,0.1,201.54,201.51,14.99648275]
[1753200245816,0.1,201.54,201.52,14.99648275]
[1753200246124,0.1,201.54,201.53,14.99648275]
[1753200246622,0.1,201.54,201.53,0.7]
[1753200246832,0.1,201.54,201.53,15.69648275]
[1753200247603,0.1,201.54,201.53,121.08116672]
[1753200247805,0.1,201.54,201.53,134.9591304]
[1753200248327,0.1,201.54,201.53,46.3591304]
[1753200248526,0.06,201.59,201.54,16.78468397]
[1753200248834,0.06,201.59,201.58,14.99648275]
[1753200249212,0.06,201.59,201.58,15.69648275]
[1753200249542,0.06,201.59,201.58,15.81719465]
[1753200250028,0.06,201.59,201.58,32.60187862]
[1753200250226,0.06,201.59,201.58,135.0798423]
[1753200250601,0.06,201.59,201.58,46.4798423]
[1753200250805,0.06,201.59,201.58,103.29867558]